[Event "Kupreichik Memorial Rapid 2019"]
[Site "Minsk"]
[Date "2019.08.17"]
[Round "9.3"]
[White "Teterev, Vitaly"]
[Black "Tsaruk, Maksim"]
[Result "0-1"]
[ECO "A05"]
[WhiteElo "2474"]
[BlackElo "2230"]
[Annotator "ChessBase"]
[PlyCount "130"]
[EventDate "2019.08.15"]
[EventType "swiss"]
[EventCountry "BLR"]
[SourceTitle "playchess.com"]
[Source "ChessBase"]
[SourceQuality "1"]
[TimeControl "900+10"]

1. Nf3 {[%emt 0:00:00]} Nf6 {[%emt 0:00:00]} 2. g3 {[%emt 0:00:00]} b6 {[%emt 0:00:07]} 3. Bg2 {[%emt 0:00:00]} Bb7 {[%emt 0:00:01]} 4. O-O {[%emt 0:00:01]} g6 {[%emt 0:00:11]} 5. d3 {[%emt 0:00:08]} Bg7 {[%emt 0:00:36]} 6. e4 {[%emt 0:00:03]} d6 {[%emt 0:00:01]} 7. Re1 {[%emt 0:00:03]} Nbd7 {[%emt 0:00:03]} 8. Nbd2 {[%emt 0:00:23]} c5 {[%emt 0:00:19]} 9. c3 {[%emt 0:00:07]} O-O {[%emt 0:03:18]} 10. d4 {[%emt 0:00:19]} cxd4 {[%emt 0:00:59]} 11. cxd4 {[%emt 0:00:01]} e5 {[%emt 0:00:10]} 12. d5 {[%emt 0:00:26]} Nc5 {[%emt 0:01:45]} 13. Bf1 {[%emt 0:00:29]} Qd7 {[%emt 0:00:17]} 14. a4 {[%emt 0:02:22]} a5 {[%emt 0:00:45]} 15. Nc4 {[%emt 0:00:28]} Qc7 {[%emt 0:01:58]} 16. Nfd2 {[%emt 0:00:29]} Ba6 {[%emt 0:00:01]} 17. f3 {[%emt 0:02:27]} b5 {[%emt 0:00:21]} 18. axb5 {[%emt 0:01:06]} Bxb5 {[%emt 0:00:01]} 19. Re3 {[%emt 0:00:22]} Rfb8 {[%emt 0:01:11]} 20. Rea3 {[%emt 0:00:41]} a4 {[%emt 0:00:46]} 21. b3 {[%emt 0:00:24]} Nxb3 {[%emt 0:00:26]} 22. Nxb3 {[%emt 0:01:05]} Bxc4 {[%emt 0:00:02]} 23. Nd2 {[%emt 0:00:43]} Bxf1 24. Nxf1 {[%emt 0:00:02]} Rb4 {[%emt 0:04:45]} 25. Bd2 {[%emt 0:00:25]} Qa7+ {[%emt 0:00:48]} 26. Kg2 {[%emt 0:00:40]} Rc4 {[%emt 0:00:14]} 27. Ne3 {[%emt 0:01:30]} Rd4 {[%emt 0:00:02]} 28. Nc2 {[%emt 0:00:28]} Rc4 {[%emt 0:00:09]} 29. Nb4 {[%emt 0:01:03]} Qd4 {[%emt 0:00:17]} 30. Nc6 {[%emt 0:00:12]} Qb2 {[%emt 0:00:01]} 31. R3a2 {[%emt 0:01:37]} Qb6 {[%emt 0:00:10]} 32. Rxa4 {[%emt 0:00:28]} Raxa4 {[%emt 0:00:01]} 33. Rxa4 {[%emt 0:00:00]} Rxa4 34. Qxa4 {[%emt 0:00:01]} Qb2 {[%emt 0:00:32]} 35. Qb4 {[%emt 0:00:32]} Qc2 {[%emt 0:00:02]} 36. Qc3 {[%emt 0:00:30]} Qd1 {[%emt 0:00:13]} 37. Qe3 {[%emt 0:00:14]} h6 {[%emt 0:00:25]} 38. Bb4 {[%emt 0:00:17]} Bf8 {[%emt 0:00:01]} 39. Qd2 {[%emt 0:00:12]} Qb1 {[%emt 0:00:10]} 40. Qe2 {[%emt 0:00:18]} Kh7 {[%emt 0:00:17]} 41. g4 {[%emt 0:00:03]} Qb3 {[%emt 0:00:08]} 42. h3 {[%emt 0:00:04]} Nd7 {[%emt 0:00:08]} 43. h4 {[%emt 0:00:06]} f5 {[%emt 0:00:06]} 44. g5 {[%emt 0:00:24]} f4 {[%emt 0:00:19]} 45. Qd2 {[%emt 0:00:22]} hxg5 46. hxg5 {[%emt 0:00:01]} Kg8 {[%emt 0:00:08]} 47. Na5 {[%emt 0:00:20]} Qa4 {[%emt 0:00:19]} 48. Nc6 {[%emt 0:00:16]} Nb6 {[%emt 0:00:10]} 49. Qc3 {[%emt 0:00:33]} Qa2+ {[%emt 0:00:02]} 50. Qd2 {[%emt 0:00:00]} Qb3 {[%emt 0:00:15]} 51. Qc3 {[%emt 0:00:05]} Qd1 {[%emt 0:00:06]} 52. Qd2 {[%emt 0:00:02]} Qa4 {[%emt 0:00:18]} 53. Qe2 {[%emt 0:00:02]} Qb3 {[%emt 0:00:03]} 54. Be1 {[%emt 0:00:25]} Nc4 {[%emt 0:00:04]} 55. Bf2 {[%emt 0:00:04]} Kf7 {[%emt 0:00:16]} 56. Nd8+ {[%emt 0:00:13]} Ke8 {[%emt 0:00:07]} 57. Ne6 {[%emt 0:00:30]} Be7 {[%emt 0:00:01]} 58. Kh3 {[%emt 0:00:04]} Bd8 {[%emt 0:00:03]} 59. Kg4 {[%emt 0:00:08]} Bb6 {[%emt 0:00:08]} 60. Bxb6 Qxb6 {[%emt 0:00:01]} 61. Qh2 {[%emt 0:00:38]} Ne3+ {[%emt 0:00:03]} 62. Kh3 {[%emt 0:00:09]} Qb1 {[%emt 0:00:02]} 63. Nxf4 {[%emt 0:00:10]} exf4 {[%emt 0:00:10]} 64. Qxf4 {[%emt 0:00:12]} Qf1+ {[%emt 0:00:02]} 65. Kh2 {[%emt 0:00:07]} Qg2# {[%emt 0:00:01]} 0-1

[Event "Kupreichik Memorial Rapid 2019"]
[Site "Minsk"]
[Date "2019.08.17"]
[Round "9.5"]
[White "Lazavik, Denis"]
[Black "Sychev, Klementy"]
[Result "1-0"]
[ECO "D45"]
[WhiteElo "2347"]
[BlackElo "2579"]
[Annotator "ChessBase"]
[PlyCount "157"]
[EventDate "2019.08.15"]
[EventType "swiss"]
[EventCountry "BLR"]
[SourceTitle "playchess.com"]
[Source "ChessBase"]
[SourceQuality "1"]
[TimeControl "900+10"]

1. d4 {[%emt 0:00:00]} Nf6 {[%emt 0:00:00]} 2. c4 {[%emt 0:00:00]} e6 {[%emt 0:00:00]} 3. Nf3 {[%emt 0:00:00]} d5 {[%emt 0:00:00]} 4. Nc3 {[%emt 0:00:01]} c6 {[%emt 0:00:01]} 5. e3 {[%emt 0:00:02]} Nbd7 {[%emt 0:00:02]} 6. Qc2 {[%emt 0:00:03]} b6 {[%emt 0:00:15]} 7. cxd5 {[%emt 0:00:40]} cxd5 {[%emt 0:00:04]} 8. Nb5 {[%emt 0:00:31]} Bb4+ {[%emt 0:00:09]} 9. Bd2 {[%emt 0:00:02]} Bxd2+ {[%emt 0:00:02]} 10. Nxd2 {[%emt 0:00:04]} O-O {[%emt 0:00:07]} 11. Bd3 {[%emt 0:00:25]} a6 {[%emt 0:01:07]} 12. Nc3 {[%emt 0:00:05]} b5 {[%emt 0:04:01]} 13. O-O {[%emt 0:00:15]} Bb7 {[%emt 0:00:18]} 14. Rfc1 {[%emt 0:00:20]} Rc8 {[%emt 0:01:17]} 15. Qd1 {[%emt 0:00:37]} Nb6 {[%emt 0:00:14]} 16. Ne2 {[%emt 0:02:51]} Nc4 {[%emt 0:00:14]} 17. Rc2 {[%emt 0:00:08]} Nd7 {[%emt 0:03:49]} 18. Rac1 {[%emt 0:01:42]} Qb6 {[%emt 0:00:26]} 19. b3 {[%emt 0:00:42]} Nd6 {[%emt 0:00:02]} 20. Rxc8 {[%emt 0:00:16]} Rxc8 {[%emt 0:00:02]} 21. Rxc8+ {[%emt 0:00:05]} Bxc8 {[%emt 0:00:02]} 22. Qc2 {[%emt 0:00:17]} g6 {[%emt 0:00:02]} 23. b4 {[%emt 0:01:06]} a5 {[%emt 0:00:04]} 24. Qc3 {[%emt 0:00:23]} a4 {[%emt 0:00:06]} 25. a3 {[%emt 0:00:45]} Nc4 {[%emt 0:00:05]} 26. Nb1 {[%emt 0:00:25]} Bb7 {[%emt 0:00:17]} 27. Qc1 {[%emt 0:00:34]} Qd6 {[%emt 0:00:14]} 28. Nec3 {[%emt 0:00:07]} Bc6 {[%emt 0:00:04]} 29. Be2 {[%emt 0:00:32]} f6 {[%emt 0:00:11]} 30. Qc2 {[%emt 0:01:09]} Kg7 {[%emt 0:00:18]} 31. Qc1 {[%emt 0:00:26]} Ndb6 {[%emt 0:01:05]} 32. Nd2 {[%emt 0:01:01]} e5 {[%emt 0:01:33]} 33. Nf3 {[%emt 0:00:10]} e4 {[%emt 0:00:52]} 34. Nd2 {[%emt 0:00:06]} f5 {[%emt 0:00:06]} 35. Bxc4 {[%emt 0:00:07]} dxc4 {[%emt 0:00:11]} 36. Ne2 {[%emt 0:00:10]} Nd5 {[%emt 0:00:08]} 37. Nb1 {[%emt 0:00:30]} g5 {[%emt 0:00:09]} 38. Nbc3 {[%emt 0:00:03]} Nf6 {[%emt 0:00:03]} 39. h3 {[%emt 0:00:25]} Kf8 {[%emt 0:01:22]} 40. Qd2 {[%emt 0:00:22]} h5 {[%emt 0:00:28]} 41. d5 {[%emt 0:00:55]} Nxd5 {[%emt 0:00:38]} 42. h4 {[%emt 0:00:06]} Qe5 {[%emt 0:00:21]} 43. hxg5 {[%emt 0:00:13]} Kg7 {[%emt 0:00:14]} 44. Nxd5 Bxd5 {[%emt 0:00:01]} 45. Nd4 {[%emt 0:00:30]} Bf7 {[%emt 0:00:17]} 46. Qc3 {[%emt 0:00:35]} Kg6 {[%emt 0:00:08]} 47. Nxb5 {[%emt 0:00:06]} Qe7 {[%emt 0:00:18]} 48. Qd4 {[%emt 0:01:08]} Qxg5 {[%emt 0:00:06]} 49. Nc3 {[%emt 0:00:06]} h4 {[%emt 0:00:07]} 50. Qd6+ {[%emt 0:00:07]} Kh5 {[%emt 0:00:23]} 51. Qe5 {[%emt 0:00:29]} Bg6 {[%emt 0:00:54]} 52. Nd5 {[%emt 0:00:55]} Kh6 {[%emt 0:00:13]} 53. Nf4 {[%emt 0:00:29]} Qd8 {[%emt 0:00:22]} 54. Qe6 {[%emt 0:00:07]} Qe8 {[%emt 0:00:10]} 55. Qxc4 {[%emt 0:00:04]} Bf7 {[%emt 0:00:04]} 56. Qd4 {[%emt 0:00:04]} Kh7 {[%emt 0:00:18]} 57. Qf6 {[%emt 0:00:02]} Qd7 {[%emt 0:00:01]} 58. Qxh4+ {[%emt 0:00:07]} Kg8 {[%emt 0:00:01]} 59. Qg5+ {[%emt 0:00:27]} Kf8 {[%emt 0:00:08]} 60. Qf6 {[%emt 0:00:03]} Kg8 {[%emt 0:00:09]} 61. Qd4 {[%emt 0:00:12]} Qe7 {[%emt 0:00:07]} 62. Qc5 {[%emt 0:00:23]} Qf6 {[%emt 0:00:00]} 63. b5 {[%emt 0:00:13]} Qa1+ {[%emt 0:00:12]} 64. Kh2 {[%emt 0:00:01]} Qb2 {[%emt 0:00:05]} 65. Nh3 {[%emt 0:00:14]} f4 {[%emt 0:00:02]} 66. exf4 {[%emt 0:00:07]} e3 {[%emt 0:00:17]} 67. Qxe3 {[%emt 0:00:10]} Qxb5 {[%emt 0:00:03]} 68. Ng5 {[%emt 0:00:01]} Qf5 {[%emt 0:00:44]} 69. Qe5 {[%emt 0:00:05]} Qg6 {[%emt 0:00:11]} 70. Qb8+ {[%emt 0:00:20]} Be8 {[%emt 0:00:01]} 71. Qc7 {[%emt 0:00:13]} Qh5+ {[%emt 0:00:05]} 72. Kg3 {[%emt 0:00:02]} Qg6 {[%emt 0:00:02]} 73. Qe7 {[%emt 0:00:13]} Qd3+ {[%emt 0:00:27]} 74. Qe3 {[%emt 0:00:07]} Qb3 {[%emt 0:00:10]} 75. Kh2 {[%emt 0:00:16]} Bg6 {[%emt 0:00:19]} 76. Qe7 {[%emt 0:00:25]} Qd3 {[%emt 0:00:19]} 77. Ne6 {[%emt 0:00:05]} Bf7 {[%emt 0:00:09]} 78. Qg5+ {[%emt 0:00:10]} Bg6 {[%emt 0:00:02]} 79. Qf6 {[%emt 0:00:02]} 1-0

[Event "Kupreichik Memorial Rapid 2019"]
[Site "Minsk"]
[Date "2019.08.17"]
[Round "9.6"]
[White "Balashov, Yuri S"]
[Black "Zarubitski, Viachaslau"]
[Result "1-0"]
[ECO "D11"]
[WhiteElo "2474"]
[BlackElo "2426"]
[Annotator "ChessBase"]
[PlyCount "87"]
[EventDate "2019.08.15"]
[EventType "swiss"]
[EventCountry "BLR"]
[SourceTitle "playchess.com"]
[Source "ChessBase"]
[SourceQuality "1"]
[TimeControl "900+10"]

1. Nf3 {[%emt 0:00:00]} Nf6 {[%emt 0:00:00]} 2. c4 {[%emt 0:00:00]} c6 {[%emt 0:00:00]} 3. d4 {[%emt 0:00:01]} d5 {[%emt 0:00:00]} 4. e3 {[%emt 0:00:04]} a6 {[%emt 0:00:00]} 5. Nbd2 {[%emt 0:00:11]} Bf5 {[%emt 0:00:22]} 6. b3 {[%emt 0:00:13]} e6 {[%emt 0:00:20]} 7. Bb2 {[%emt 0:00:03]} Be7 {[%emt 0:00:13]} 8. Be2 {[%emt 0:00:04]} h6 {[%emt 0:00:03]} 9. O-O {[%emt 0:00:04]} O-O {[%emt 0:00:38]} 10. c5 {[%emt 0:00:11]} Nbd7 {[%emt 0:00:18]} 11. b4 {[%emt 0:00:05]} Ne4 {[%emt 0:00:09]} 12. a4 {[%emt 0:00:30]} Qc7 {[%emt 0:00:39]} 13. Nb3 {[%emt 0:00:05]} Bf6 {[%emt 0:00:33]} 14. Rc1 {[%emt 0:00:18]} Rfe8 {[%emt 0:00:21]} 15. Nfd2 {[%emt 0:01:07]} e5 {[%emt 0:01:21]} 16. Nxe4 {[%emt 0:00:05]} Bxe4 {[%emt 0:00:11]} 17. Bg4 {[%emt 0:00:36]} Rad8 {[%emt 0:00:33]} 18. Bxd7 {[%emt 0:00:05]} Rxd7 {[%emt 0:00:09]} 19. Qd2 {[%emt 0:00:09]} Re6 {[%emt 0:03:39]} 20. Rfe1 {[%emt 0:00:29]} Rde7 {[%emt 0:00:39]} 21. dxe5 {[%emt 0:00:18]} Bxe5 {[%emt 0:00:06]} 22. Bxe5 {[%emt 0:00:06]} Rxe5 {[%emt 0:00:17]} 23. Nd4 {[%emt 0:00:14]} Re8 {[%emt 0:01:05]} 24. f3 {[%emt 0:00:11]} Bh7 {[%emt 0:00:07]} 25. b5 {[%emt 0:00:15]} g5 {[%emt 0:02:08]} 26. Rc3 {[%emt 0:00:22]} f5 {[%emt 0:00:21]} 27. bxc6 {[%emt 0:01:05]} bxc6 {[%emt 0:00:01]} 28. Rb3 {[%emt 0:00:04]} f4 {[%emt 0:00:12]} 29. Re2 {[%emt 0:00:04]} R5e7 {[%emt 0:03:53]} 30. exf4 {[%emt 0:00:46]} gxf4 {[%emt 0:00:01]} 31. Rb6 {[%emt 0:01:10]} Rxe2 {[%emt 0:00:10]} 32. Nxe2 {[%emt 0:00:02]} Qe7 {[%emt 0:00:05]} 33. Nd4 {[%emt 0:00:22]} Qxc5 {[%emt 0:00:26]} 34. Rxc6 {[%emt 0:00:04]} Qa3 {[%emt 0:00:30]} 35. Kf2 {[%emt 0:02:49]} Re3 {[%emt 0:01:02]} 36. Rc8+ {[%emt 0:00:32]} Kg7 {[%emt 0:00:08]} 37. Rc7+ {[%emt 0:00:13]} Kh8 {[%emt 0:00:12]} 38. Nf5 {[%emt 0:00:21]} Rd3 {[%emt 0:00:17]} 39. Rc8+ {[%emt 0:00:05]} Bg8 {[%emt 0:00:01]} 40. Qxf4 {[%emt 0:00:13]} Qb2+ {[%emt 0:00:04]} 41. Kg3 {[%emt 0:00:10]} Qf6 {[%emt 0:00:18]} 42. Qxh6+ {[%emt 0:00:03]} Qxh6 {[%emt 0:00:02]} 43. Nxh6 {[%emt 0:00:02]} d4 {[%emt 0:00:02]} 44. Nxg8 {[%emt 0:00:03]} 1-0

[Event "Kupreichik Memorial Rapid 2019"]
[Site "Minsk"]
[Date "2019.08.17"]
[Round "9.7"]
[White "Pakhomov, Alexey"]
[Black "Zhukova, Natalia"]
[Result "1-0"]
[ECO "A57"]
[WhiteElo "2315"]
[BlackElo "2333"]
[Annotator "NA"]
[PlyCount "75"]
[EventDate "2019.08.15"]
[EventType "swiss"]
[EventCountry "BLR"]
[SourceTitle "playchess.com"]
[Source "ChessBase"]
[SourceQuality "1"]
[TimeControl "900+10"]

1. d4 {[%emt 0:00:18]} Nf6 {[%emt 0:00:00]} 2. c4 {[%emt 0:00:02]} c5 {[%emt 0:00:04]} 3. d5 {[%emt 0:00:27]} b5 {[%emt 0:00:03]} 4. Nd2 {[%emt 0:01:21]} bxc4 {[%emt 0:00:39]} 5. e4 {[%emt 0:00:02]} c3 {[%emt 0:00:05]} 6. bxc3 {[%emt 0:00:02]} d6 {[%emt 0:00:02]} 7. c4 {[%emt 0:01:22]} g6 {[%emt 0:00:07]} 8. Bb2 {[%emt 0:00:01]} Bg7 {[%emt 0:00:02]} 9. Bd3 {[%emt 0:00:07]} O-O {[%emt 0:00:29]} 10. Ngf3 {[%emt 0:00:26]} e5 {[%emt 0:03:40]} 11. O-O {[%emt 0:04:14]} Nh5 {[%emt 0:00:21]} 12. g3 {[%emt 0:00:03]} Nd7 {[%emt 0:04:26]} 13. Nh4 {[%emt 0:00:11]} Nf4 {[%emt 0:00:27]} 14. Bc2 {[%emt 0:02:17]} Nb6 {[%emt 0:00:03]} 15. Ng2 {[%emt 0:01:36]} Nh3+ {[%emt 0:02:38]} 16. Kh1 {[%emt 0:00:03]} f5 {[%emt 0:00:01]} 17. exf5 {[%emt 0:00:43]} Bxf5 {[%emt 0:00:16]} 18. Bxf5 {[%emt 0:01:37]} Rxf5 {[%emt 0:00:11]} 19. f4 {[%emt 0:00:21]} Rb8 {[%emt 0:01:37]} 20. Rb1 {[%emt 0:00:58]} Qd7 {[%emt 0:02:34]} 21. Qg4 {[%emt 0:00:58]} Na4 {[%emt 0:00:08]} 22. Qxh3 {[%emt 0:00:39]} Nxb2 {[%emt 0:00:13]} 23. Ne3 {[%emt 0:00:23]} Rf7 {[%emt 0:00:01]} 24. f5 {[%emt 0:00:01]} e4 {[%emt 0:00:18]} 25. g4 {[%emt 0:00:12]} Rbf8 {[%emt 0:00:04]} 26. Nxe4 {[%emt 0:00:13]} Re7 {[%emt 0:00:36]} 27. Ng5 {[%emt 0:00:06]} h6 {[%emt 0:00:14]} 28. Ne6 {[%emt 0:00:01]} Nd3 {[%emt 0:00:09]} 29. Nxf8 {[%emt 0:00:30]} Bxf8 {[%emt 0:00:05]} 30. Rb8 {[%emt 0:00:08]} Re8 {[%emt 0:00:05]} 31. Rxe8 Qxe8 {[%emt 0:00:01]} 32. fxg6 {[%emt 0:00:24]} Qe4+ {[%emt 0:00:12]} 33. Qf3 {[%emt 0:00:02]} Qxf3+ {[%emt 0:00:16]} 34. Rxf3 {[%emt 0:00:01]} Ne5 {[%emt 0:00:07]} 35. Rf6 {[%emt 0:00:10]} Be7 {[%emt 0:00:24]} 36. Re6 {[%emt 0:00:03]} Bg5 {[%emt 0:00:02]} 37. Nf5 {[%emt 0:00:03]} Nxc4 {[%emt 0:00:05]} 38. Re8# 1-0

[Event "Kupreichik Memorial Rapid 2019"]
[Site "Minsk"]
[Date "2019.08.17"]
[Round "9.8"]
[White "Pogosian, Manvel"]
[Black "Vashchilov, Sergey"]
[Result "1-0"]
[ECO "D37"]
[WhiteElo "2383"]
[BlackElo "2162"]
[Annotator "NA"]
[PlyCount "43"]
[EventDate "2019.08.15"]
[EventType "swiss"]
[EventCountry "BLR"]
[SourceTitle "playchess.com"]
[Source "ChessBase"]
[SourceQuality "1"]
[TimeControl "900+10"]

1. d4 {[%emt 0:00:00]} e6 {[%emt 0:00:00]} 2. Nf3 {[%emt 0:00:00]} d5 {[%emt 0:00:00]} 3. c4 {[%emt 0:00:01]} Nf6 {[%emt 0:00:01]} 4. Nc3 {[%emt 0:00:03]} dxc4 {[%emt 0:00:28]} 5. e3 {[%emt 0:00:10]} a6 {[%emt 0:00:08]} 6. Bxc4 {[%emt 0:00:02]} b5 {[%emt 0:00:03]} 7. Bb3 {[%emt 0:00:31]} Bb7 {[%emt 0:00:10]} 8. O-O {[%emt 0:00:08]} Nbd7 {[%emt 0:00:15]} 9. Qe2 {[%emt 0:00:39]} c5 {[%emt 0:00:08]} 10. Rd1 {[%emt 0:00:06]} Qc7 {[%emt 0:00:48]} 11. e4 {[%emt 0:02:35]} cxd4 {[%emt 0:05:26]} 12. Nxd4 {[%emt 0:00:07]} Nc5 {[%emt 0:01:41]} 13. Bg5 {[%emt 0:02:28]} Be7 {[%emt 0:01:35]} 14. e5 {[%emt 0:00:49]} Nxb3 {[%emt 0:00:16]} 15. axb3 {[%emt 0:00:32]} Nd5 {[%emt 0:00:09]} 16. Nxd5 {[%emt 0:03:12]} Bxd5 {[%emt 0:00:13]} 17. Nxb5 axb5 {[%emt 0:00:28]} 18. Qxb5+ {[%emt 0:00:46]} Kf8 {[%emt 0:00:18]} 19. Rxa8+ {[%emt 0:00:12]} Bxa8 {[%emt 0:00:02]} 20. Rd7 {[%emt 0:00:05]} Bc6 {[%emt 0:04:16]} 21. Bxe7+ {[%emt 0:00:23]} Ke8 {[%emt 0:00:15]} 22. Rxc7 {[%emt 0:00:03]} 1-0

[Event "Kupreichik Memorial Rapid 2019"]
[Site "Minsk"]
[Date "2019.08.17"]
[Round "9.9"]
[White "Maryasin, Boris"]
[Black "Mikhailovsky, Vladimir"]
[Result "0-1"]
[ECO "B23"]
[WhiteElo "2302"]
[BlackElo "2209"]
[Annotator "NA"]
[PlyCount "70"]
[EventDate "2019.08.15"]
[EventType "swiss"]
[EventCountry "BLR"]
[SourceTitle "playchess.com"]
[Source "ChessBase"]
[SourceQuality "1"]
[TimeControl "900+10"]

1. e4 {[%emt 0:00:00]} c5 {[%emt 0:00:00]} 2. Nc3 {[%emt 0:00:00]} e5 {[%emt 0:00:00]} 3. Bc4 {[%emt 0:00:15]} Nc6 {[%emt 0:00:01]} 4. d3 {[%emt 0:00:08]} d6 {[%emt 0:00:03]} 5. f4 {[%emt 0:00:13]} Nd4 {[%emt 0:02:53]} 6. fxe5 {[%emt 0:01:41]} dxe5 {[%emt 0:00:15]} 7. Nf3 {[%emt 0:00:01]} f6 {[%emt 0:02:22]} 8. Nxd4 {[%emt 0:00:43]} cxd4 {[%emt 0:00:31]} 9. Nd5 {[%emt 0:00:09]} h5 {[%emt 0:03:37]} 10. O-O {[%emt 0:00:06]} Ne7 {[%emt 0:00:37]} 11. c3 {[%emt 0:02:00]} Nxd5 {[%emt 0:00:27]} 12. Bxd5 {[%emt 0:00:01]} Bc5 {[%emt 0:00:22]} 13. Kh1 {[%emt 0:01:09]} Qe7 {[%emt 0:00:32]} 14. Qb3 {[%emt 0:01:14]} h4 {[%emt 0:01:20]} 15. cxd4 {[%emt 0:00:02]} Bxd4 {[%emt 0:00:30]} 16. Bd2 {[%emt 0:00:01]} h3 {[%emt 0:00:19]} 17. g3 {[%emt 0:00:10]} Rb8 {[%emt 0:01:07]} 18. Rac1 {[%emt 0:00:12]} Bg4 {[%emt 0:01:16]} 19. Bc6+ {[%emt 0:00:48]} Bd7 {[%emt 0:00:49]} 20. Bd5 {[%emt 0:00:15]} Bg4 {[%emt 0:00:04]} 21. Bb4 {[%emt 0:00:11]} Qd7 {[%emt 0:00:04]} 22. Qa3 {[%emt 0:00:07]} Rc8 {[%emt 0:00:32]} 23. Bc5 {[%emt 0:01:47]} Rxc5 {[%emt 0:00:49]} 24. Rxc5 {[%emt 0:00:02]} Be2 {[%emt 0:00:14]} 25. Rcc1 {[%emt 0:01:12]} Qg4 {[%emt 0:00:01]} 26. Qa4+ {[%emt 0:00:06]} Kd8 {[%emt 0:00:01]} 27. Qxd4 {[%emt 0:01:24]} exd4 {[%emt 0:00:08]} 28. Rf4 {[%emt 0:00:06]} Qd7 {[%emt 0:00:15]} 29. Bc4 {[%emt 0:00:33]} Ke7 {[%emt 0:00:12]} 30. Re1 {[%emt 0:00:05]} Bg4 {[%emt 0:00:11]} 31. e5 {[%emt 0:00:22]} Qc6+ {[%emt 0:00:02]} 32. Ree4 {[%emt 0:00:01]} f5 {[%emt 0:00:01]} 33. Rxg4 {[%emt 0:00:21]} fxg4 {[%emt 0:00:06]} 34. Kg1 {[%emt 0:00:02]} Rc8 {[%emt 0:00:09]} 35. Kf2 {[%emt 0:00:22]} Qxe4 {[%emt 0:00:03]} 0-1

[Event "Kupreichik Memorial Rapid 2019"]
[Site "Minsk"]
[Date "2019.08.17"]
[Round "9.10"]
[White "Veremeichik, Vladimir"]
[Black "Sarbay, Aleksandr"]
[Result "1-0"]
[ECO "A61"]
[WhiteElo "2282"]
[BlackElo "2115"]
[Annotator "NA"]
[PlyCount "87"]
[EventDate "2019.08.15"]
[EventType "swiss"]
[EventCountry "BLR"]
[SourceTitle "playchess.com"]
[Source "ChessBase"]
[SourceQuality "1"]
[TimeControl "900+10"]

1. d4 {[%emt 0:00:00]} Nf6 {[%emt 0:01:07]} 2. c4 {[%emt 0:00:00]} e6 {[%emt 0:00:14]} 3. Nc3 {[%emt 0:00:00]} c5 {[%emt 0:00:06]} 4. d5 {[%emt 0:00:00]} exd5 {[%emt 0:00:01]} 5. cxd5 {[%emt 0:00:00]} d6 {[%emt 0:00:12]} 6. Nf3 {[%emt 0:00:02]} g6 {[%emt 0:00:03]} 7. Bf4 {[%emt 0:00:04]} a6 {[%emt 0:00:25]} 8. a4 {[%emt 0:00:02]} Bg7 {[%emt 0:00:04]} 9. h3 {[%emt 0:00:01]} O-O {[%emt 0:00:17]} 10. e3 {[%emt 0:00:01]} Qe7 {[%emt 0:00:43]} 11. Nd2 {[%emt 0:00:15]} Nh5 {[%emt 0:01:04]} 12. Bh2 {[%emt 0:00:03]} Nd7 {[%emt 0:00:05]} 13. Be2 {[%emt 0:00:02]} Nhf6 {[%emt 0:00:39]} 14. O-O {[%emt 0:00:52]} b6 {[%emt 0:00:42]} 15. Re1 {[%emt 0:01:15]} Bb7 {[%emt 0:00:44]} 16. e4 {[%emt 0:00:07]} Ne8 {[%emt 0:00:21]} 17. Nc4 {[%emt 0:00:22]} Rb8 {[%emt 0:00:38]} 18. Bg4 {[%emt 0:00:25]} Ba8 {[%emt 0:00:17]} 19. Qd3 {[%emt 0:00:14]} b5 {[%emt 0:00:34]} 20. axb5 {[%emt 0:00:01]} axb5 {[%emt 0:00:03]} 21. Na5 {[%emt 0:00:06]} c4 {[%emt 0:00:39]} 22. Qc2 {[%emt 0:00:47]} Nc5 {[%emt 0:00:29]} 23. Nc6 {[%emt 0:02:22]} Bxc6 {[%emt 0:00:13]} 24. dxc6 {[%emt 0:00:01]} Nd3 {[%emt 0:01:09]} 25. Nd5 {[%emt 0:00:07]} Qd8 {[%emt 0:01:03]} 26. Re3 {[%emt 0:00:30]} Bxb2 {[%emt 0:01:10]} 27. Rb1 {[%emt 0:00:12]} Be5 {[%emt 0:01:26]} 28. Rxd3 {[%emt 0:00:20]} Bxh2+ {[%emt 0:00:36]} 29. Kxh2 {[%emt 0:00:02]} cxd3 {[%emt 0:00:00]} 30. Qc3 {[%emt 0:01:00]} f5 {[%emt 0:00:28]} 31. exf5 {[%emt 0:00:09]} gxf5 {[%emt 0:00:01]} 32. Bf3 {[%emt 0:00:23]} Rf7 {[%emt 0:00:44]} 33. Bh5 {[%emt 0:00:10]} Nc7 {[%emt 0:00:36]} 34. Bxf7+ {[%emt 0:00:11]} Kxf7 {[%emt 0:00:01]} 35. Qxd3 {[%emt 0:00:13]} Kg6 {[%emt 0:02:02]} 36. g4 {[%emt 0:00:10]} Nxd5 {[%emt 0:00:16]} 37. Qxf5+ {[%emt 0:00:02]} Kg7 {[%emt 0:00:04]} 38. Qxd5 {[%emt 0:00:01]} Qf6 {[%emt 0:00:11]} 39. Kg2 {[%emt 0:01:53]} Qe5 {[%emt 0:00:43]} 40. Qxe5+ {[%emt 0:00:24]} dxe5 {[%emt 0:00:01]} 41. c7 {[%emt 0:00:01]} Rc8 {[%emt 0:00:05]} 42. Rxb5 {[%emt 0:00:01]} Kf6 {[%emt 0:00:12]} 43. Rb6+ {[%emt 0:00:19]} Kg5 {[%emt 0:00:41]} 44. Kg3 {[%emt 0:00:05]} 1-0

[Event "Kupreichik Memorial Rapid 2019"]
[Site "Minsk"]
[Date "2019.08.17"]
[Round "9.12"]
[White "Dydyshko, Viacheslav"]
[Black "Romanovskij, Nikita"]
[Result "1-0"]
[ECO "E12"]
[WhiteElo "2506"]
[BlackElo "1869"]
[Annotator "ChessBase"]
[PlyCount "65"]
[EventDate "2019.08.15"]
[EventType "swiss"]
[EventCountry "BLR"]
[SourceTitle "playchess.com"]
[Source "ChessBase"]
[SourceQuality "1"]
[TimeControl "900+10"]

1. d4 {[%emt 0:00:00]} Nf6 {[%emt 0:00:00]} 2. c4 {[%emt 0:00:00]} e6 {[%emt 0:00:02]} 3. Nf3 {[%emt 0:00:00]} b6 {[%emt 0:00:07]} 4. a3 {[%emt 0:00:00]} Bb7 {[%emt 0:00:09]} 5. Bf4 {[%emt 0:00:02]} d5 {[%emt 0:00:18]} 6. e3 {[%emt 0:00:06]} Bd6 {[%emt 0:00:55]} 7. Bg3 {[%emt 0:00:59]} O-O {[%emt 0:00:38]} 8. cxd5 {[%emt 0:00:14]} exd5 {[%emt 0:01:08]} 9. Nc3 {[%emt 0:00:03]} Qe7 {[%emt 0:01:03]} 10. Rc1 {[%emt 0:00:13]} c5 {[%emt 0:00:59]} 11. Bd3 {[%emt 0:01:10]} Nbd7 {[%emt 0:00:41]} 12. O-O {[%emt 0:00:07]} Bxg3 {[%emt 0:01:11]} 13. hxg3 {[%emt 0:00:03]} Ne4 {[%emt 0:00:04]} 14. Bb1 {[%emt 0:01:07]} Rfd8 {[%emt 0:01:18]} 15. Qd3 {[%emt 0:01:36]} Rac8 {[%emt 0:01:11]} 16. Rfd1 {[%emt 0:00:06]} cxd4 {[%emt 0:00:32]} 17. Qxd4 {[%emt 0:01:36]} Ndc5 {[%emt 0:00:21]} 18. Ba2 {[%emt 0:00:09]} Nxc3 {[%emt 0:01:00]} 19. Rxc3 {[%emt 0:00:11]} Ne6 {[%emt 0:00:07]} 20. Qd3 {[%emt 0:00:56]} Rxc3 {[%emt 0:00:50]} 21. Qxc3 {[%emt 0:00:03]} Qc5 {[%emt 0:00:55]} 22. Qd2 {[%emt 0:00:30]} Rc8 {[%emt 0:00:43]} 23. Bxd5 {[%emt 0:01:02]} Rd8 {[%emt 0:01:24]} 24. e4 {[%emt 0:00:02]} Bxd5 {[%emt 0:00:06]} 25. exd5 {[%emt 0:00:03]} Nc7 {[%emt 0:00:03]} 26. d6 {[%emt 0:02:56]} Ne8 {[%emt 0:00:04]} 27. d7 {[%emt 0:00:09]} Nf6 {[%emt 0:00:08]} 28. Rc1 {[%emt 0:00:56]} Qf5 {[%emt 0:00:19]} 29. Rc7 {[%emt 0:00:43]} a5 {[%emt 0:01:48]} 30. Qe1 {[%emt 0:01:32]} h5 {[%emt 0:00:24]} 31. Ne5 {[%emt 0:02:13]} Kf8 {[%emt 0:01:19]} 32. Nc6 {[%emt 0:00:14]} Qc5 {[%emt 0:00:15]} 33. Rc8 {[%emt 0:00:10]} 1-0